fUSD/lending_fUSD_20250826
["ID","MTS","AMOUNT","RATE_DAILY","PERIOD"]
[381467307,1756223469452,-5079.28106,0.00022,7]
[381467308,1756223469462,-500.048548,0.00022,7]
[381467309,1756223469472,-500.048548,0.00022,7]
[381467310,1756223469482,-500.048548,0.00022,7]
[381467311,1756223469492,-500.048548,0.00022,7]
[381467312,1756223469502,-500.048548,0.00022,7]
[381467313,1756223469512,-500.048548,0.00022,7]
[381467314,1756223469523,-458.289033,0.00022,7]
[381467315,1756223469533,-458.289033,0.00022,7]
[381467316,1756223469543,-500.048548,0.00022,7]
[381467317,1756223469552,-458.289033,0.00022,7]
[381467318,1756223469562,-500.048555,0.00022,7]
[381467319,1756223469572,-458.289033,0.00022,7]
[381467320,1756223469582,-458.289033,0.00022,7]
[381467321,1756223469592,-264.054665,0.00022,7]
[381467322,1756223469602,-458.289033,0.00022,7]
[381467323,1756223469612,-264.054665,0.00022,7]
[381467324,1756223469623,-5079.28106,0.00022,7]
[381467325,1756223469632,-5079.28106,0.00022,7]
[381467326,1756223469642,-458.289033,0.00022,7]
[381467327,1756223469652,-458.289029,0.00022,7]
[381467328,1756223469662,-264.054665,0.00022,7]
[381467329,1756223469672,-5079.28106,0.00022,7]
[381467330,1756223469683,-264.054665,0.00022,7]
[381467331,1756223469693,-5079.28106,0.00022,7]
[381467332,1756223469703,-151.0,0.00022,7]
[381467333,1756223469712,-243.373341,0.00022,7]
[381467334,1756223469722,-264.054665,0.00022,7]
[381467335,1756223469733,-151.0,0.00022,7]
[381467336,1756223469746,-151.0,0.00022,7]
[381467337,1756223469756,-5079.28106,0.00022,7]
[381467338,1756223469766,-264.054665,0.00022,7]
[381467339,1756223469777,-151.0,0.00022,7]
[381467340,1756223469789,-5079.281064,0.00022,7]
[381467341,1756223469799,-151.0,0.00022,7]
[381467342,1756223469809,-264.054665,0.00022,7]
[381467343,1756223469820,-264.054657,0.00022,7]
[381467344,1756223469829,-8832.220096,0.00022,7]
[381467345,1756223469839,-151.0,0.00022,7]
[381467346,1756223469849,-8832.220096,0.00022,7]
[381467347,1756223469859,-151.0,0.00022,7]
[381467348,1756223469869,-8832.220096,0.00022,7]
[381467349,1756223469879,-154.437022,0.00022,7]
[381467350,1756223469889,-8832.220096,0.00022,7]
[381467351,1756223469899,-8832.220096,0.00022,7]
[381467352,1756223469909,-8832.220096,0.00022,7]
[381467353,1756223469919,-8832.220096,0.00022,7]
[381467354,1756223469929,-273.123243,0.00022,7]
[381467355,1756223469939,-8832.220104,0.00022,7]
[381467356,1756223469949,-273.123243,0.00022,7]
[381467357,1756223469959,-273.123243,0.00022,7]
[381467358,1756223469968,-273.123243,0.00022,7]
[381467359,1756223469978,-273.123243,0.00022,7]
[381467360,1756223469987,-273.123243,0.00022,7]
[381467361,1756223469997,-273.123243,0.00022,7]
[381467362,1756223470007,-273.123241,0.00022,7]
[381467363,1756223470017,-151.0,0.00022,7]
[381467364,1756223470028,-151.0,0.00022,7]
[381467365,1756223470038,-151.0,0.00022,7]
[381467366,1756223470048,-151.0,0.00022,7]
[381467367,1756223470059,-396.768348,0.00022,7]
[381467368,1756223470068,-396.768348,0.00022,7]
[381467369,1756223470079,-396.768348,0.00022,7]
[381467370,1756223470089,-151.0,0.00022,7]
[381467371,1756223470099,-396.768348,0.00022,7]
[381467372,1756223470108,-151.0,0.00022,7]
[381467373,1756223470118,-205.454238,0.00022,7]
[381467374,1756223470128,-205.454238,0.00022,7]
[381467375,1756223470139,-396.768348,0.00022,7]
[381467376,1756223470149,-396.768348,0.00022,7]
[381467377,1756223470158,-205.454238,0.00022,7]
[381467378,1756223470168,-205.454238,0.00022,7]
[381467379,1756223470178,-396.768348,0.00022,7]
[381467380,1756223470187,-396.768347,0.00022,7]
[381467381,1756223470197,-467.412451,0.00022,7]
[381467382,1756223470207,-467.412451,0.00022,7]
[381467383,1756223470217,-205.454238,0.00022,7]
[381467384,1756223470227,-205.454238,0.00022,7]
[381467385,1756223470237,-151.0,0.00022,7]
[381467386,1756223470247,-467.412451,0.00022,7]
[381467387,1756223470257,-151.0,0.00022,7]
[381467388,1756223470267,-467.412451,0.00022,7]
[381467389,1756223470280,-205.454238,0.00022,7]
[381467390,1756223470290,-205.454235,0.00022,7]
[381467391,1756223470300,-151.0,0.00022,7]
[381467392,1756223470310,-467.412451,0.00022,7]
[381467393,1756223470320,-151.0,0.00022,7]
[381467394,1756223470331,-467.412451,0.00022,7]
[381467395,1756223470342,-151.0,0.00022,7]
[381467396,1756223470351,-1425.0,0.00022003,2]
[381467397,1756223470361,-180.59,0.00022008,2]
[381467398,1756223470371,-680.0,0.0002203,2]
[381467399,1756223470380,-241.57,0.00022046,2]
[381467400,1756223470389,-150.0,0.00022052,4]
[381467401,1756223470399,-1000.0,0.00022057,2]
[381467402,1756223470408,-1000.0,0.0002207,2]
[381467403,1756223470417,-489.99943124,0.0002209,2]
[381467404,1756223470426,-359.76179104,0.00022096,2]
[381467405,1756223470436,-484.4152107,0.000221,2]
[381467406,1756223470446,-2319.9,0.000221,2]
[381467407,1756223470455,-235.4057461,0.0002211,2]
[381467408,1756223470464,-1000.0,0.00022132,2]
[381467409,1756223470474,-2442.08344118,0.0002216,2]
[381467410,1756223470483,-3500.0,0.0002216,2]
[381467411,1756223470492,-3500.0,0.0002216,2]
[381467412,1756223470502,-600.0,0.00022164,2]
[381467413,1756223470511,-150.0,0.0002218,4]
[381467414,1756223470521,-1000.0,0.00022185,2]
[381467415,1756223470531,-500.0,0.00022192,2]
[381467416,1756223470540,-500.0,0.00022192,2]
[381467417,1756223470550,-500.0,0.00022192,2]
[381467418,1756223470560,-437.0,0.00022192,2]
[381467419,1756223470570,-1119.0,0.00022192,2]
[381467420,1756223470580,-321.52780352,0.00022192,2]
[381467421,1756223470590,-251.22254815,0.00022192,2]
[381467422,1756223470600,-589.0,0.00022192,2]
[381467423,1756223470609,-500.0,0.00022192,2]
[381467424,1756223470619,-192.09321992,0.00022192,2]
[381467425,1756223470629,-500.0,0.00022192,2]
[381467426,1756223470639,-500.0,0.00022192,2]
[381467427,1756223470650,-500.0,0.00022192,2]
[381467428,1756223470659,-1000.0,0.00022197,2]
[381467429,1756223470670,-1534.44,0.000222,2]
[381467430,1756223470680,-200.0,0.0002221,7]
[381467431,1756223470690,-150.0,0.00022235,2]
[381467432,1756223470700,-1425.0,0.00022249,2]
[381467433,1756223470709,-150.0,0.00022268,2]
[381467434,1756223470719,-150.0,0.00022291,2]
[381467435,1756223470729,-1000.0,0.00022294,2]
[381467436,1756223470739,-1538.03817054,0.00022302,2]
[381467437,1756223470752,-150.0,0.00022307,4]
[381467438,1756223470761,-1000.0,0.00022317,2]
[381467439,1756223470771,-1000.0,0.00022334,2]
[381467440,1756223470783,-150.0,0.00022353,2]
[381467441,1756223470793,-1425.0,0.00022354,2]
[381467442,1756223470803,-1000.0,0.00022357,2]
[381467443,1756223470812,-377.22128039,0.00022368,2]
[381467444,1756223470823,-1000.0,0.00022371,2]
[381467445,1756223470833,-1425.0,0.00022379,2]
[381467446,1756223470842,-500.0,0.00022379,2]
[381467447,1756223470852,-500.0,0.00022379,2]
[381467448,1756223470861,-500.0,0.00022379,2]
[381467449,1756223470871,-500.0,0.00022379,2]
[381467450,1756223470880,-500.0,0.00022379,2]
[381467451,1756223470890,-800.0,0.00022379,2]
[381467452,1756223470899,-500.0,0.00022379,2]
[381467453,1756223470908,-500.0,0.00022379,2]
[381467454,1756223470918,-500.0,0.00022379,2]
[381467455,1756223470927,-500.0,0.00022379,2]
[381467456,1756223470936,-150.0,0.00022389,2]
[381467457,1756223470946,-665.13224464,0.000224,2]
[381467458,1756223470956,-151.84874432,0.00022403,2]
[381467459,1756223470965,-150.0,0.00022404,2]
[381467460,1756223470975,-150.0,0.0002241,2]
[381467461,1756223471263,-150.0,0.0002242,2]
[381467462,1756223471275,-150.0,0.00022421,2]
[381467463,1756223471285,-150.0,0.00022431,2]
[381467464,1756223471294,-150.0,0.00022435,4]
[381467465,1756223471304,-150.0,0.00022438,2]
[381467466,1756223471314,-1000.0,0.00022439,2]
[381467467,1756223471324,-1000.0,0.00022457,2]
[381467468,1756223471334,-1000.0,0.00022465,2]
[381467469,1756223471343,-500.0,0.00022466,2]
[381467470,1756223471353,-500.0,0.00022466,2]
[381467471,1756223471362,-500.0,0.00022466,2]
[381467472,1756223471372,-437.0,0.00022466,2]
[381467473,1756223471381,-1119.0,0.00022466,2]
[381467474,1756223471391,-589.0,0.00022466,2]
[381467475,1756223471400,-500.0,0.00022466,2]
[381467476,1756223471410,-500.0,0.00022466,2]
[381467477,1756223471419,-500.0,0.00022466,2]
[381467478,1756223471429,-405.93645903,0.00022466,2]
[381467479,1756223471439,-187.78006525,0.00022466,2]
[381467480,1756223471449,-150.0,0.00022473,2]
[381467481,1756223471458,-1425.0,0.00022479,2]
[381467482,1756223471468,-150.0,0.00022487,2]
[381467483,1756223471477,-1425.0,0.0002249,2]
[381467484,1756223471487,-34761.06146262,0.000225,2]
[381467485,1756223471496,-1000.0,0.000225,2]
[381467486,1756223471506,-150.0,0.00022507,2]
[381467487,1756223471515,-200.0,0.0002251,7]
[381467488,1756223471526,-1000.0,0.00022516,2]
[381467489,1756223471535,-250.0,0.00022521,2]
[381467490,1756223471545,-3098.0,0.00022529,2]
[381467491,1756223471554,-150.0,0.00022547,2]
[381467492,1756223471564,-217.0,0.0002255,2]
[381467493,1756223471574,-1425.0,0.00022554,2]
[381467494,1756223471583,-150.0,0.00022555,2]
[381467495,1756223471593,-150.0,0.00022562,4]
[381467496,1756223471602,-1425.0,0.00022571,2]
[381467497,1756223471612,-150.0,0.00022572,2]
[381467498,1756223471622,-1000.0,0.00022585,2]
[381467499,1756223471632,-150.0,0.000226,2]
[381467500,1756223471642,-150.0,0.000226,2]
[381467501,1756223471651,-1425.0,0.00022601,2]
[381467502,1756223471661,-633.8,0.00022603,2]
[381467503,1756223471671,-150.0,0.00022606,2]
[381467504,1756223471680,-150.0,0.00022634,2]
[381467505,1756223471690,-2100.0,0.00022637,2]
[381467506,1756223471700,-3000.0,0.00022637,2]
[381467507,1756223471711,-150.0,0.00022643,2]
[381467508,1756223471720,-150.0,0.00022662,2]
[381467509,1756223471730,-150.0,0.00022668,2]
[381467510,1756223471741,-1000.0,0.00022676,2]
[381467511,1756223471753,-1425.0,0.00022683,2]
[381467512,1756223471762,-150.0,0.0002269,4]
[381467513,1756223471772,-150.0,0.00022691,2]
[381467514,1756223471783,-1000.0,0.00022692,2]
[381467515,1756223471794,-1000.0,0.000227,2]
[381467516,1756223471803,-4000.0,0.00022708,2]
[381467517,1756223471813,-4000.0,0.00022708,2]
[381467518,1756223471824,-200.0,0.0002271,7]
[381467519,1756223471834,-512.28848926,0.0002271,2]
[381467520,1756223471844,-242.21709933,0.0002271,2]
[381467521,1756223471853,-600.0,0.00022712,2]
[381467522,1756223471863,-150.0,0.00022717,2]
[381467523,1756223471873,-150.87131939,0.0002272,2]
[381467524,1756223471882,-1000.0,0.00022721,2]
[381467525,1756223471892,-1425.0,0.00022732,2]
[381467526,1756223471901,-380.04251978,0.0002274,2]
[381467527,1756223471911,-500.0,0.0002274,2]
[381467528,1756223471921,-500.0,0.0002274,2]
[381467529,1756223471930,-437.0,0.0002274,2]
[381467530,1756223471942,-1119.0,0.0002274,2]
[381467531,1756223471951,-589.0,0.0002274,2]
[381467532,1756223471961,-500.0,0.0002274,2]
[381467533,1756223471971,-500.0,0.0002274,2]
[381467534,1756223471980,-500.0,0.0002274,2]
[381467535,1756223471990,-150.0,0.00022748,2]
[381467536,1756223471999,-150.0,0.0002275,2]
[381467537,1756223472010,-150.0,0.00022772,2]
[381467538,1756223472019,-150.0,0.00022775,2]
[381467539,1756223472030,-150.0,0.00022777,2]
[381467540,1756223472039,-1425.0,0.00022779,2]
[381467541,1756223472048,-1000.0,0.00022799,2]
[381467542,1756223472058,-40000.0,0.000228,7]
[381467543,1756223472068,-150.0,0.00022803,2]
[381467544,1756223472078,-209.0,0.0002281,2]
[381467545,1756223472088,-229.0,0.0002281,2]
[381467546,1756223472100,-150.0,0.00022817,4]
[381467547,1756223472110,-1363.78584,0.0002282,2]
[381467548,1756223472121,-1425.0,0.00022826,2]
[381467549,1756223472131,-150.0,0.00022828,2]
[381467550,1756223472142,-150.0,0.00022836,2]
[381467551,1756223472153,-300.0,0.00022845,2]
[381467552,1756223472164,-1000.0,0.00022845,2]
[381467553,1756223472177,-150.0,0.00022847,2]
[381467554,1756223472192,-150.0,0.00022851,2]
[381467555,1756223472212,-150.0,0.00022851,2]
[381467556,1756223472225,-5800.0,0.00022859,2]
[381467557,1756223472235,-316.18208052,0.00022869,2]
[381467558,1756223472245,-1000.0,0.00022888,2]
[381467559,1756223472256,-1425.0,0.00022892,2]
[381467560,1756223472266,-200.0,0.0002291,7]
[381467561,1756223472277,-469.3,0.00022914,2]
[381467562,1756223472288,-150.0,0.00022918,2]
[381467563,1756223472297,-1425.0,0.00022928,2]
[381467564,1756223472307,-1425.0,0.00022934,2]
[381467565,1756223472316,-234.8582374,0.00022941,2]
[381467566,1756223472325,-150.0,0.00022944,4]
[381467567,1756223472335,-1000.0,0.00022958,2]
[381467568,1756223472344,-1425.0,0.00022958,2]
[381467569,1756223472354,-150.0,0.00022961,2]
[381467570,1756223472363,-500.0,0.0002297,2]
[381467571,1756223472373,-1000.0,0.0002297,2]
[381467572,1756223472383,-1425.0,0.00022976,2]
[381467573,1756223472393,-1000.0,0.00022985,2]
[381467574,1756223472402,-1425.0,0.00022988,2]
[381467575,1756223472412,-150.0,0.00022996,2]
[381467576,1756223472422,-1000.0,0.00022998,2]
[381467577,1756223472431,-620.4602314,0.00023,7]
[381467578,1756223472441,-430.65974541,0.00023,2]
[381467579,1756223472451,-165.0,0.00023,5]
[381467580,1756223472460,-844.63891918,0.00023,3]
[381467581,1756223472470,-39050.89,0.00023,2]
[381467582,1756223472480,-506.045782,0.00023,2]
[381467583,1756223472490,-907.6001,0.00023,2]
[381467584,1756223472500,-907.6001,0.00023,2]
[381467585,1756223472509,-721.0,0.00023,7]
[381467586,1756223472519,-160.0,0.00023,3]
[381467587,1756223472529,-2193.6373,0.00023,2]
[381467588,1756223472539,-2193.6373,0.00023,2]
[381467589,1756223472548,-160.0,0.00023,3]
[381467590,1756223472558,-1560.5782,0.00023,2]
[381467591,1756223472567,-1560.5782,0.00023,2]
[381467592,1756223472577,-500.0,0.00023014,2]
[381467593,1756223472586,-500.0,0.00023014,2]
[381467594,1756223472596,-437.0,0.00023014,2]
[381467595,1756223472606,-1119.0,0.00023014,2]
[381467596,1756223472615,-589.0,0.00023014,2]
[381467597,1756223472626,-500.0,0.00023014,2]
[381467598,1756223472635,-500.0,0.00023014,2]
[381467599,1756223472645,-500.0,0.00023014,2]
[381467600,1756223472655,-194.72792766,0.00023014,2]
[381467601,1756223472665,-7394.69850074,0.00023038,2]
[381467602,1756223472675,-350.0,0.00023068,2]
[381467603,1756223472684,-150.0,0.00023072,4]
[381467604,1756223472694,-200.0,0.000231,7]
[381467605,1756223472704,-187.98781697,0.000231,2]
[381467606,1756223472714,-27606.0,0.000231,2]
[381467607,1756223472724,-500.0,0.00023199,2]
[381467608,1756223472733,-150.0,0.00023199,4]
[381467609,1756223472745,-51080.18220673,0.000232,2]
[381467610,1756223472755,-665.0,0.0002322,2]
[381467611,1756223472765,-1247.20656508,0.00023256,2]
[381467612,1756223472775,-4500.0,0.00023256,2]
[381467613,1756223472786,-600.0,0.0002326,2]
[381467614,1756223472796,-721.0,0.00023288,7]
[381467615,1756223472806,-150.0,0.00023288,2]
[381467616,1756223472816,-500.0,0.00023288,2]
[381467617,1756223472828,-500.0,0.00023288,2]
[381467618,1756223472839,-437.0,0.00023288,2]
[381467619,1756223472849,-1119.0,0.00023288,2]
[381467620,1756223472859,-589.0,0.00023288,2]
[381467621,1756223472869,-500.0,0.00023288,2]
[381467622,1756223472880,-531.68309883,0.00023288,2]
[381467623,1756223472890,-500.0,0.00023288,2]
[381467624,1756223472900,-364.53094331,0.000233,2]
[381467625,1756223472911,-162.86024058,0.00023306,2]
[381467626,1756223472921,-150.0,0.00023327,4]
[381467627,1756223472931,-180.0,0.00023339,2]
[381467628,1756223472941,-309.29654756,0.00023365,2]
[381467629,1756223472952,-217.0,0.000234,2]
[381467630,1756223472962,-150.0,0.00023454,4]
[381467631,1756223472973,-2319.9,0.00023458,2]
[381467632,1756223472983,-373.07297731,0.00023465,2]
[381467633,1756223472993,-450.0,0.00023479,6]
[381467634,1756223473002,-200.0,0.000235,2]
[381467635,1756223473012,-5510.0,0.000235,3]
[381467636,1756223473021,-200.0,0.0002351,7]
[381467637,1756223473032,-3594.2703849,0.00023546,2]
[381467638,1756223473041,-721.0,0.00023562,7]
[381467639,1756223473051,-137138.08312801,0.00023562,7]
[381467640,1756223474408,-1170.42108765,0.00023562,7]
[381467641,1756223474420,-359.22299985,0.00023562,7]
[381467642,1756223474433,-545.2210001,0.00023562,7]
[381467643,1756223474446,-503.23559843,0.00023562,7]
[381467644,1756223474461,-94000.04510665,0.00023562,7]
[381467645,1756223474591,-150.0,0.00020822,2]
[381467646,1756223474603,-150.0,0.00020822,2]
[381467647,1756223474614,-151.0,0.000209,2]
[381467648,1756223474625,-315.233184,0.000209,2]
[381467649,1756223474636,-151.0,0.00021,2]
[381467650,1756223474646,-315.233184,0.00021,2]
[381467651,1756223474657,-150.0,0.00021096,2]
[381467652,1756223474667,-200.0,0.0002137,2]
[381467653,1756223474678,-213.02725,0.000217,2]
[381467654,1756223474689,-5000.0,0.00021918,2]
[381467655,1756223474703,-467.412451,0.00022,7]
[381467656,1756223474714,-151.0,0.00022,7]
[381467657,1756223474724,-467.412443,0.00022,7]
[381467658,1756223474734,-151.0,0.00022,7]
[381467659,1756223474746,-82367.681488,0.00023562,7]
[381467660,1756223474758,-336.73540175,0.00023562,7]
[381467661,1756223474770,-5131.38418956,0.00023562,7]
[381467662,1756223474781,-519.31572819,0.00023562,2]
[381467663,1756223474793,-500.0,0.00023562,2]
[381467664,1756223474803,-437.0,0.00023562,2]
[381467665,1756223474813,-1119.0,0.00023562,2]
[381467666,1756223474825,-589.0,0.00023562,2]
[381467667,1756223474837,-500.0,0.00023562,2]
[381467668,1756223474847,-201.93286099,0.00023562,2]
[381467669,1756223474858,-150.0,0.00023582,4]
[381467670,1756223474872,-200.0,0.0002361,7]
[381467671,1756223474882,-450.0,0.00023616,2]
[381467672,1756223474892,-1000.0,0.00023631,2]
[381467673,1756223474902,-209.0,0.0002364,2]
[381467674,1756223474913,-229.0,0.0002364,2]
[381467675,1756223474925,-301.79,0.00023668,2]
[381467676,1756223474936,-2475.35,0.000237,7]
[381467677,1756223474945,-4383.50407848,0.000237,2]
[381467678,1756223474955,-150.0,0.00023709,4]
[381467679,1756223474966,-200.0,0.0002371,7]
[381467680,1756223474977,-1000.0,0.00023726,2]
[381467681,1756223474989,-2100.0,0.00023733,2]
[381467682,1756223474999,-3000.0,0.00023733,2]
[381467683,1756223475009,-2616.22314278,0.00023748,3]
[381467684,1756223475029,-3772.97039822,0.00023748,3]
[381467685,1756223475090,-315.233184,0.000217,2]
[381467686,1756223475100,-526.567056,0.00023748,3]
[381467687,1756223475320,-315.233184,0.000209,2]
[381467688,1756223475330,-221.855164,0.000209,2]
[381467689,1756223475340,-221.855164,0.000209,2]
[381467690,1756223475350,-315.233184,0.00021,2]
[381467691,1756223475359,-221.855164,0.00021,2]
[381467692,1756223475369,-315.233184,0.000217,2]
[381467693,1756223475378,-221.855164,0.000217,2]
[381467694,1756223475388,-315.233184,0.00022,7]
[381467695,1756223475398,-315.233184,0.00022,7]
[381467696,1756223475408,-315.233184,0.00022,7]
[381467697,1756223475419,-315.233184,0.00022,7]
[381467698,1756223475429,-221.855164,0.00022,7]
[381467699,1756223475439,-221.855164,0.00022,7]
[381467700,1756223475452,-1606.73999522,0.00023748,3]
[381467701,1756223475478,-402.0,0.0001843,2]
[381467702,1756223475488,-315.233184,0.000209,2]
[381467703,1756223475498,-1684.5668158,0.00023748,3]
[381467704,1756223475510,-462.9682955,0.00023748,3]
[381467705,1756223475522,-1113.57011113,0.00023748,3]
[381467706,1756223475533,-1500.0,0.00023775,2]
[381467707,1756223475543,-2015.42988906,0.00023804,2]
[381467708,1756223475556,-1386.326387,0.00023804,2]
[381467709,1756223475567,-600.0,0.00023808,2]
[381467710,1756223475578,-721.0,0.00023836,7]
[381467711,1756223475589,-151.0,0.00023836,2]
[381467712,1756223475600,-437.0,0.00023836,2]
[381467713,1756223475610,-1119.0,0.00023836,2]
[381467714,1756223475621,-589.0,0.00023836,2]
[381467715,1756223475631,-459.0,0.00023836,2]
[381467716,1756223475642,-150.0,0.00023837,4]
[381467717,1756223475651,-2047.31,0.000239,7]
[381467718,1756223475661,-3554.55585642,0.000239,5]
[381467719,1756223475673,-1955.44414358,0.000239,5]
[381467720,1756223475683,-500.0,0.000239,8]
[381467721,1756223475693,-44.55575642,0.0002391,7]
[381467722,1756223475705,-155.44424358,0.0002391,7]
[381467723,1756223475716,-1000.0,0.00023917,2]
[381467724,1756223475725,-150.0,0.00023964,4]
[381467725,1756223475736,-500.0,0.00023999,2]
[381467726,1756223475750,-60.68508842,0.00024,4]
[381467727,1756223475763,-422.3538,0.00024,4]
[381467728,1756223475862,-221.855164,0.00021,2]
[381467729,1756223475878,-315.233184,0.00021,2]
[381467730,1756223475889,-3516.96111158,0.00024,4]
[381467731,1756223475900,-60617.92681678,0.00024,2]
[381467732,1756223475910,-998.9858853,0.00024,2]
[381467733,1756223475920,-1489.68678308,0.00024,2]
[381467734,1756223475931,-50412.45691981,0.00024,2]
[381467735,1756223475941,-265.00157855,0.00024,2]
[381467736,1756223475951,-400000.0,0.00024,3]
[381467737,1756223475961,-844.63891918,0.00024,3]
[381467738,1756223475971,-7035.0,0.00024,3]
[381467739,1756223475981,-844.63891918,0.00024,7]
[381467740,1756223475998,-45406.25087402,0.00024,7]
[381467761,1756224033064,114.11,0.00015,2]
[381467762,1756224061776,1469.67594334,0.00014,2]
[381467763,1756224062056,150.0,0.000145,3]
[381467771,1756224130336,276.04,0.00013699,2]
[381467785,1756224425111,435.78420695,0.00013699,2]
[381467786,1756224425134,64.21579305,0.00013699,2]
[381467787,1756224425359,150.0,0.00014199,3]
[381467804,1756224631989,-150.0,0.00016388,2]
[381467805,1756224631999,-150.0,0.00016413,2]
[381467806,1756224632009,-150.0,0.00016443,2]
[381467807,1756224632018,-150.0,0.00016463,2]
[381467808,1756224632031,-168.42004454,0.00016463,3]
[381467809,1756224632113,-463.47800865,0.00016463,3]
[381467810,1756224632125,-368.10194681,0.00016463,3]
[381467811,1756224632134,-550.0,0.00017624,2]
[381467812,1756224632144,-1200.0,0.00017624,2]
[381467813,1756224632154,-300.0,0.00017624,2]
[381467814,1756224632165,-500.0,0.00017625,2]
[381467815,1756224632174,-500.0,0.00017625,2]
[381467816,1756224632183,-500.0,0.00017625,2]
[381467817,1756224632192,-500.0,0.00017625,2]
[381467818,1756224632201,-500.0,0.00017625,2]
[381467819,1756224632211,-500.0,0.00017625,2]
[381467820,1756224632220,-500.0,0.00017625,2]
[381467821,1756224632229,-500.0,0.00017625,2]
[381467822,1756224632239,-500.0,0.00017625,2]
[381467823,1756224632249,-500.0,0.00017625,2]
[381467824,1756224632260,-500.0,0.00017625,2]
[381467825,1756224632269,-500.0,0.00017625,2]
[381467826,1756224632279,-500.0,0.00017625,2]
[381467827,1756224632288,-192.9061442,0.00017625,2]
[381467828,1756224632297,-500.0,0.00017625,2]
[381467829,1756224632307,-500.0,0.00017625,2]
[381467830,1756224632316,-500.0,0.00017625,2]
[381467831,1756224632325,-500.0,0.00017625,2]
[381467832,1756224632334,-500.0,0.00017625,2]
[381467833,1756224632343,-500.0,0.00017625,2]
[381467834,1756224632352,-150.0,0.00017999,2]
[381467835,1756224632362,-250.0,0.00017999,2]
[381467836,1756224632371,-204.0,0.00017999,2]
[381467837,1756224632380,-150.0,0.00017999,2]
[381467838,1756224632389,-500.0,0.00018,2]
[381467839,1756224632398,-150.0,0.00018054,2]
[381467840,1756224632408,-250.0,0.00018054,2]
[381467841,1756224632418,-496.20401143,0.00018054,3]
[381467842,1756224632431,-503.79598857,0.00018054,3]
[381467843,1756224632444,-250.0,0.00018054,2]
[381467844,1756224632453,-78.20089643,0.00018065,2]
[381467845,1756224632464,-894.79910357,0.00018065,2]
[381467846,1756224632474,-346.0,0.000181,2]
[381467847,1756224632483,-166.0,0.00018247,2]
[381467848,1756224632492,-220.98221094,0.00018247,2]
[381467849,1756224632502,-500.0,0.00018273,2]
[381467850,1756224632512,-381.0,0.00018291,2]
[381467851,1756224632521,-2015.82144861,0.00018417,2]
[381467853,1756224632530,-237.6,0.00018547,2]
[381467854,1756224632540,-935.0,0.00018717,2]
[381467855,1756224632551,-600.0,0.00018892,2]
[381467856,1756224632560,-151.0,0.00018892,2]
[381467857,1756224632569,-500.0,0.00018892,2]
[381467858,1756224632579,-500.0,0.00018892,2]
[381467859,1756224632588,-500.0,0.00018892,2]
[381467860,1756224632598,-500.0,0.00018892,2]
[381467861,1756224632608,-500.0,0.00018892,2]
[381467862,1756224632618,-500.0,0.00018892,2]
[381467863,1756224632627,-500.0,0.00018892,2]